bitfinex-derivatives/quotes_BTCF0:USTF0_20250424
["timestamp","ask_amount","ask_price","bid_price","bid_amount"]
[1745538090316,0.2864204,93928.0,93927.0,0.4672202]
[1745538090521,0.18,93928.0,93927.0,0.4672202]
[1745538091926,0.184,93928.0,93927.0,0.4682202]
[1745538092231,0.184,93928.0,93927.0,0.6402202]
[1745538092531,0.187,93928.0,93927.0,0.6412202]
[1745538093332,0.4409,93928.0,93927.0,0.6412202]
[1745538098034,0.5473198,93928.0,93927.0,0.6412202]
[1745538099956,0.4409,93928.0,93927.0,0.6412202]
[1745538101740,0.5473198,93928.0,93927.0,0.6412202]
[1745538102747,0.5473198,93928.0,93927.0,0.5348]
[1745538103135,0.5473198,93928.0,93927.0,0.3628]
[1745538106643,0.5473198,93928.0,93927.0,0.4692209]
[1745538110351,0.5473198,93928.0,93927.0,0.6412209]
[1745538110851,0.5473198,93928.0,93927.0,0.5348]
[1745538111355,0.5473198,93928.0,93927.0,0.6412209]
[1745538114155,0.3511,93928.0,93927.0,0.6412209]
[1745538114356,0.2684,93928.0,93927.0,0.7314209]
[1745538114654,0.187,93928.0,93927.0,0.7314209]
[1745538121466,0.187,93928.0,93927.0,0.625]
[1745538121663,0.187,93928.0,93927.0,0.7314209]
[1745538125468,0.187,93928.0,93927.0,1.0922209]
[1745538126572,0.2934198,93928.0,93927.0,0.8956]
[1745538126768,0.187,93928.0,93927.0,0.8956]
[1745538126970,0.187,93928.0,93927.0,1.0020209]
[1745538127364,0.3612,93928.0,93927.0,1.0020209]
[1745538127963,0.3612,93928.0,93927.0,1.0872209]
[1745538135970,0.4676198,93928.0,93927.0,1.0872209]
[1745538136165,0.3612,93928.0,93927.0,1.0872209]
[1745538140981,0.3612,93928.0,93927.0,1.1757209]
[1745538146985,0.187,93928.0,93927.0,1.1757209]
[1745538148778,0.2934198,93928.0,93927.0,1.0872209]
[1745538148973,0.187,93928.0,93927.0,1.0872209]
[1745538149784,0.277,93928.0,93927.0,1.1745209]
[1745538150080,0.42,93947.0,93945.0,0.1064005]
[1745538150081,0.0903,93946.0,93945.0,0.1064005]
[1745538150281,0.3875,93946.0,93945.0,0.8280005]
[1745538151278,0.4938994,93946.0,93945.0,1.0000005]
[1745538151479,0.3925,93946.0,93945.0,1.0010005]
[1745538151680,0.4988994,93946.0,93945.0,1.0010005]
[1745538151873,0.3925,93946.0,93945.0,1.0010005]
[1745538152482,0.3995,93946.0,93945.0,1.0020005]
[1745538153488,0.4076726,93946.0,93945.0,1.0020005]
[1745538154481,0.222,93946.0,93945.0,1.0167974]
[1745538154879,0.0887,93964.0,93963.0,0.1063801]
[1745538155077,0.3687,93964.0,93963.0,0.8279801]
[1745538155677,0.28,93964.0,93963.0,0.8279801]
[1745538156079,0.291,93964.0,93963.0,0.8289801]
[1745538156384,0.291,93964.0,93963.0,1.0009801]
[1745538156980,0.288,93964.0,93963.0,1.0009801]
[1745538157586,0.296,93964.0,93963.0,1.0019801]
[1745538158086,0.29980555,93964.0,93963.0,1.0009801]
[1745538159387,0.40618455,93964.0,93963.0,1.0009801]
[1745538159686,0.29980555,93964.0,93963.0,1.0009801]
[1745538160383,0.47180555,93964.0,93963.0,1.0009801]
[1745538165887,0.29980555,93964.0,93963.0,1.0009801]
[1745538166087,0.29980555,93964.0,93963.0,1.0912801]
[1745538166686,0.29980555,93964.0,93963.0,1.0009801]
[1745538168589,0.40618455,93964.0,93963.0,0.8946]
[1745538169483,0.48858455,93964.0,93963.0,0.8946]
[1745538170291,0.48858455,93964.0,93963.0,1.0009801]
[1745538173386,0.38220555,93964.0,93963.0,1.0009801]
[1745538173591,0.48858455,93964.0,93963.0,1.0009801]
[1745538174995,0.38220555,93964.0,93963.0,1.0009801]
[1745538175193,0.48858455,93964.0,93963.0,1.0009801]
[1745538175390,0.1063994,93946.0,93937.0,0.0532046]
[1745538175598,0.1063994,93946.0,93944.0,0.1064012]
[1745538175599,0.1064017,93945.0,93944.0,0.1064012]
[1745538175796,0.6251017,93945.0,93944.0,0.1064012]
[1745538175999,0.5187,93945.0,93944.0,0.1064012]
[1745538177002,0.6251005,93945.0,93944.0,0.21155612]
[1745538177299,0.6251005,93945.0,93944.0,0.38355612]
[1745538177300,0.5187,93945.0,93944.0,0.38355612]
[1745538178701,0.6251005,93945.0,93944.0,0.38355612]
[1745538179202,0.5187,93945.0,93944.0,0.38355612]
[1745538180193,0.5197,93945.0,93944.0,0.38355612]
[1745538180390,0.4304,93945.0,93944.0,0.38355612]
[1745538180597,0.3471,93945.0,93944.0,0.38355612]
[1745538184204,0.261,93945.0,93944.0,0.38355612]
[1745538184796,0.261,93945.0,93944.0,0.27715452]
[1745538184996,0.261,93945.0,93944.0,0.38355612]
[1745538185598,0.3495,93945.0,93944.0,0.38355612]
[1745538185904,0.261,93945.0,93944.0,0.38355612]
[1745538200005,0.261,93945.0,93944.0,0.46895612]
[1745538212420,0.0896,93971.0,93970.0,0.1063722]
[1745538212613,0.1489959,93971.0,93970.0,0.4671722]
[1745538213319,0.1693,93986.0,93985.0,0.1063552]
[1745538213514,0.3824,93986.0,93985.0,0.1063552]
[1745538214114,0.3824,93986.0,93985.0,0.2783552]
[1745538215015,0.5788541,93986.0,93985.0,0.18581447]
[1745538215211,0.6681541,93986.0,93985.0,0.18581447]
[1745538215515,0.6681541,93986.0,93985.0,0.29216967]
[1745538215714,0.5618,93986.0,93985.0,0.29216967]
[1745538216423,0.5668,93986.0,93985.0,0.29216967]
[1745538217013,0.5668,93986.0,93985.0,0.18581447]
[1745538217222,0.5668,93986.0,93985.0,0.29216967]
[1745538218319,0.5668,93986.0,93985.0,0.18581447]
[1745538218621,0.6731541,93986.0,93985.0,0.18581447]
[1745538219012,0.5668,93986.0,93985.0,0.29216967]
[1745538221025,0.3914,93986.0,93985.0,0.29216967]
[1745538221226,0.4817,93986.0,93985.0,0.29216967]
[1745538225231,0.5657,93986.0,93985.0,0.29216967]
[1745538232034,0.4817,93986.0,93985.0,0.29216967]
[1745538232436,0.4817,93986.0,93985.0,0.46746967]
[1745538232828,0.5654,93986.0,93985.0,0.46746967]
[1745538235028,0.4817,93986.0,93985.0,0.46746967]
[1745538235220,0.4817,93986.0,93985.0,0.36111447]
[1745538235423,0.6723541,93986.0,93985.0,0.46746967]
[1745538235832,0.6723541,93986.0,93985.0,0.36111447]
[1745538236023,0.566,93986.0,93985.0,0.46746967]
[1745538236733,0.6723541,93986.0,93985.0,0.36111447]
[1745538236944,0.6723541,93986.0,93985.0,0.18581447]
[1745538237138,0.6723541,93986.0,93985.0,0.01381447]
[1745538237340,0.106362,93979.0,93978.0,0.09]
[1745538237634,0.28,93979.0,93978.0,0.1963631]
[1745538238331,0.4545,93979.0,93978.0,0.21010251]
[1745538238531,0.4575,93979.0,93978.0,0.21010251]
[1745538239144,0.4595,93979.0,93978.0,0.38210251]
[1745538248344,0.4565,93979.0,93978.0,0.38210251]
[1745538248539,0.4595,93979.0,93978.0,0.38210251]
[1745538250342,0.285,93979.0,93978.0,0.38210251]
[1745538250546,0.285,93979.0,93978.0,0.57350251]
[1745538256249,0.285,93979.0,93978.0,0.47530251]
[1745538258144,0.285,93979.0,93978.0,0.38210251]
[1745538275064,0.285,93979.0,93978.0,0.27573941]
[1745538275366,0.285,93979.0,93978.0,0.29210251]
[1745538276269,0.4728,93979.0,93978.0,0.29210251]
[1745538288481,0.3754,93979.0,93978.0,0.29210251]
[1745538288872,0.285,93979.0,93978.0,0.65290251]
[1745538293882,0.285,93979.0,93978.0,0.72006251]
[1745538294285,0.0011,93987.0,93986.0,0.1063541]
[1745538294582,0.1411,93987.0,93986.0,0.1063541]
[1745538295386,0.1461,93987.0,93986.0,0.2994541]
[1745538295783,0.1501,93987.0,93986.0,0.2994541]
[1745538297192,0.1501,93987.0,93986.0,0.4714541]
[1745538299590,0.1461,93987.0,93986.0,0.4714541]
[1745538299791,0.1461,93987.0,93986.0,0.8322541]
[1745538300493,0.1421,93987.0,93986.0,0.8322541]
[1745538301194,0.1411,93987.0,93986.0,0.8322541]
[1745538302191,0.06716,94010.0,94003.0,0.1063349]
[1745538302382,0.1885,94005.0,94004.0,0.1063337]
[1745538302588,0.3722,94005.0,94004.0,0.1063337]
[1745538303287,0.38010705,94005.0,94004.0,0.1063337]
[1745538303483,0.3722,94005.0,94004.0,0.1011]
[1745538303997,0.5725,94005.0,94004.0,0.1011]
[1745538304193,0.5725,94005.0,94004.0,0.2024337]
[1745538305198,0.5775,94005.0,94004.0,0.3744337]
[1745538306589,0.69163363,94005.0,94004.0,0.2681]
[1745538306991,0.69163363,94005.0,94004.0,0.172]
[1745538307192,0.106336,94002.0,94001.0,0.1063368]
[1745538307495,0.1063371,94001.0,94000.0,0.0981]
[1745538307704,0.5042,94001.0,94000.0,0.2044382]
[1745538308398,0.5042,94001.0,94000.0,0.3057382]
[1745538309193,0.5042,94001.0,94000.0,0.4777382]
[1745538309701,0.5062,94001.0,94000.0,0.4777382]
[1745538310202,0.5082,94001.0,94000.0,0.4777382]
[1745538314005,0.5082,94001.0,94000.0,0.3714]
[1745538314198,0.6145371,94001.0,94000.0,0.172]
[1745538314504,0.1063518,93988.0,93987.0,0.06712]
[1745538314703,0.1063518,93988.0,93979.0,0.093]
[1745538314704,0.26,93988.0,93979.0,0.093]
[1745538314904,0.1063599,93981.0,93978.0,0.12010201]
[1745538315105,0.1904,93980.0,93979.0,0.106362]
[1745538315306,0.4904,93980.0,93979.0,0.106362]
[1745538315601,0.4904,93980.0,93977.0,0.11958631]
[1745538315802,0.596761,93980.0,93978.0,0.0964]
[1745538316002,0.4904,93980.0,93977.0,0.01322241]
[1745538316211,0.4904,93980.0,93975.0,0.3608]
[1745538316401,0.4904,93980.0,93976.0,0.1495827]
[1745538316601,0.4904,93980.0,93978.0,0.1063621]
[1745538316898,0.4904,93980.0,93978.0,0.1093621]
[1745538317101,0.4904,93980.0,93979.0,0.106362]
[1745538319108,0.4904,93980.0,93979.0,0.109362]
[1745538320998,0.4904,93980.0,93979.0,0.003]
[1745538321515,0.4904,93980.0,93979.0,0.109362]
[1745538322210,0.4904,93980.0,93979.0,0.003]
[1745538322211,0.5967609,93980.0,93979.0,0.003]
[1745538323108,0.4904,93980.0,93979.0,0.109362]
[1745538324908,0.4904,93980.0,93979.0,0.003]
[1745538325216,0.5967609,93980.0,93979.0,0.003]
[1745538327112,0.1063631,93978.0,93977.0,0.01321321]
[1745538327312,0.3963631,93978.0,93976.0,0.1015]
[1745538327617,0.2893,93977.0,93976.0,0.1015]
[1745538327819,0.5593,93977.0,93976.0,0.1015]
[1745538328416,0.5593,93977.0,93976.0,0.2078654]
[1745538329320,0.5593,93977.0,93976.0,0.1015]
[1745538329620,0.6656643,93977.0,93976.0,0.1025]
[1745538329826,0.6656643,93977.0,93976.0,0.22232259]
[1745538329827,0.5593,93977.0,93976.0,0.22232259]
[1745538330213,0.5593,93977.0,93976.0,0.22532259]
[1745538331422,0.5593,93977.0,93976.0,0.11895719]
[1745538331622,0.6656643,93977.0,93976.0,0.11895719]
[1745538332118,0.6656643,93977.0,93976.0,0.01745719]
[1745538332323,0.1063711,93971.0,93970.0,0.00028]
[1745538332520,0.3763711,93971.0,93970.0,0.00028]
[1745538332718,0.1063789,93965.0,93963.0,0.3608]
[1745538332919,0.1063789,93965.0,93956.0,0.00106432]
[1745538332920,0.1993,93964.0,93956.0,0.00106432]
[1745538333123,0.1063838,93960.0,93958.0,0.1063852]
[1745538333426,0.1994,93959.0,93958.0,0.1063852]
[1745538333721,0.4594,93959.0,93958.0,0.1063852]
[1745538334618,0.3618,93959.0,93958.0,0.1103852]
[1745538335622,0.3618,93959.0,93958.0,0.1123852]
[1745538336722,0.3618,93959.0,93958.0,0.1103852]
[1745538336917,0.3618,93959.0,93958.0,0.1123852]
[1745538349634,0.3618,93959.0,93958.0,0.2065852]
[1745538352637,0.26,93959.0,93958.0,0.2065852]
[1745538352835,0.3608,93979.0,93976.0,0.0531822]
[1745538353032,0.2,93977.0,93975.0,0.0531828]
[1745538353234,0.5663646,93977.0,93976.0,0.1063647]
[1745538354041,0.1063678,93974.0,93970.0,0.053186]
[1745538354252,0.1012,93973.0,93972.0,0.1063691]
[1745538354546,0.4112,93973.0,93972.0,0.1063691]
[1745538355439,0.4122,93973.0,93972.0,0.1063691]
[1745538356035,0.4112,93973.0,93972.0,0.1063691]
[1745538356348,0.5185688,93973.0,93972.0,0.1063691]
[1745538356749,0.5185688,93973.0,93972.0,0.1073691]
[1745538357751,0.4122,93973.0,93972.0,0.1073691]
[1745538358140,0.4112,93973.0,93972.0,0.001]
[1745538358340,0.5175688,93973.0,93972.0,0.1073699]
[1745538358852,0.5175688,93973.0,93972.0,0.001]
[1745538360547,0.1063699,93972.0,93971.0,0.1063708]
[1745538360751,0.3763699,93972.0,93971.0,0.1063708]
[1745538360950,0.4794699,93972.0,93971.0,0.1063708]
[1745538361652,0.1063737,93970.0,93969.0,0.1063726]
[1745538361854,0.4063737,93970.0,93969.0,0.1063726]
[1745538362053,0.1063765,93967.0,93966.0,0.1063767]
[1745538362256,0.3963765,93967.0,93966.0,0.1063767]
[1745538362954,0.4994765,93967.0,93966.0,0.1063767]
[1745538363253,0.4994765,93967.0,93966.0,0.1083767]
[1745538363456,0.1063869,93957.0,93953.0,0.3608]
[1745538363641,0.27,93957.0,93956.0,0.12034676]
[1745538363848,0.3763869,93957.0,93956.0,0.12034676]
[1745538364247,0.4736869,93957.0,93956.0,0.12034676]
[1745538365057,0.4736869,93957.0,93956.0,0.12234676]
[1745538368161,0.4775869,93957.0,93956.0,0.12534676]
[1745538369460,0.27,93957.0,93956.0,0.12534676]
[1745538372060,0.27,93957.0,93956.0,0.22144676]
[1745538376667,0.3728,93957.0,93956.0,0.22144676]
[1745538376870,0.27,93957.0,93956.0,0.22144676]
[1745538379671,0.1025,93958.0,93957.0,0.1063869]
[1745538379871,0.3725,93958.0,93957.0,0.3070869]
[1745538380168,0.27,93958.0,93957.0,0.3070869]
[1745538380373,0.27,93958.0,93957.0,0.4038869]
[1745538380966,0.27,93958.0,93957.0,0.4088869]
[1745538381871,0.27,93958.0,93957.0,0.4058869]
[1745538382071,0.27,93958.0,93957.0,0.4088869]
[1745538383171,0.1967,93967.0,93966.0,0.1063767]
[1745538383371,0.4767,93967.0,93966.0,0.1063767]
[1745538384070,0.4767,93967.0,93966.0,0.3067767]
[1745538384572,0.4767,93967.0,93966.0,0.3077767]
[1745538385275,0.5830756,93967.0,93966.0,0.3077767]
[1745538385573,0.5830756,93967.0,93966.0,0.3067767]
[1745538385772,0.5830756,93967.0,93966.0,0.3077767]
[1745538387176,0.5830756,93967.0,93966.0,0.3067767]
[1745538387382,0.5830756,93967.0,93966.0,0.3077767]
[1745538387781,0.5830756,93967.0,93966.0,0.3067767]
[1745538387981,0.5830756,93967.0,93966.0,0.3077767]
[1745538388277,0.5830756,93967.0,93966.0,0.3067767]
[1745538388469,0.5830756,93967.0,93966.0,0.3077767]
[1745538388878,0.5830756,93967.0,93966.0,0.3087767]
[1745538389278,0.5830756,93967.0,93966.0,0.3097767]
[1745538389466,0.5830756,93967.0,93966.0,0.003]
[1745538390069,0.1063869,93957.0,93953.0,0.561871]
[1745538390272,0.4063869,93957.0,93954.0,0.1063903]
[1745538390472,0.4063869,93957.0,93953.0,0.45548]
[1745538390971,0.6045869,93957.0,93954.0,0.1063899]
[1745538391171,0.6045869,93957.0,93953.0,0.45548]
[1745538391578,0.6045869,93957.0,93956.0,0.01795876]
[1745538392178,0.6045869,93957.0,93956.0,0.01695876]
[1745538392480,0.6045869,93957.0,93956.0,0.02095876]
[1745538392982,0.6045869,93957.0,93956.0,0.01695876]
[1745538393172,0.6045869,93957.0,93956.0,0.01895876]
[1745538393575,0.6045869,93957.0,93956.0,0.01595876]
[1745538393780,0.6045869,93957.0,93956.0,0.01795876]
[1745538402677,0.6045869,93957.0,93956.0,0.11955876]
[1745538404084,0.6045869,93957.0,93956.0,0.22594676]
[1745538412190,0.4035,93957.0,93956.0,0.22594676]
[1745538412386,0.3,93957.0,93956.0,0.22594676]
[1745538413087,0.3,93957.0,93956.0,0.32634676]
[1745538414492,0.3,93957.0,93956.0,0.74981876]
[1745538415290,0.3,93957.0,93956.0,0.49981876]
[1745538416288,0.3,93957.0,93956.0,0.39338676]
[1745538424692,0.3,93957.0,93956.0,0.49981876]
[1745538424881,0.2977665,93975.0,93974.0,0.1063677]
[1745538425086,0.3977665,93975.0,93974.0,0.1063677]
[1745538425491,0.1063688,93973.0,93972.0,0.0531845]
[1745538425794,0.4063688,93973.0,93972.0,0.0531845]
[1745538426991,0.4073688,93973.0,93972.0,0.0531845]
[1745538427382,0.4083688,93973.0,93972.0,0.0531845]
[1745538427897,0.1063711,93971.0,93970.0,0.1595572]
[1745538428194,0.4163711,93971.0,93970.0,0.0531859]
[1745538428694,0.6064711,93971.0,93970.0,0.0531859]
[1745538430189,0.1063722,93970.0,93969.0,0.00028]
[1745538430486,0.0531896,93964.0,93958.0,0.0531928]
[1745538430805,0.1063869,93957.0,93956.0,0.00106432]
[1745538431094,0.3661069,93957.0,93956.0,0.00106432]
[1745538431297,0.3661069,93957.0,93956.0,0.01320053]
[1745538431783,0.5595069,93957.0,93956.0,0.01320053]
[1745538432385,0.5595069,93957.0,93956.0,0.01620053]
[1745538433087,0.5595069,93957.0,93956.0,0.00406432]
[1745538433589,0.5595069,93957.0,93956.0,0.00606432]
[1745538434798,0.5595069,93957.0,93956.0,0.01846745]
[1745538439106,0.5595069,93957.0,93956.0,0.00606432]
[1745538441107,0.9203069,93957.0,93956.0,0.01800707]
[1745538442511,0.9203069,93957.0,93956.0,0.12439507]
[1745538442714,0.9203069,93957.0,93956.0,0.01800707]
[1745538447516,0.9203069,93957.0,93956.0,0.01800707]
[1745538449510,0.9203069,93957.0,93956.0,0.12439507]
[1745538450906,0.1491901,93963.0,93962.0,0.1063813]
[1745538451111,0.29,93963.0,93962.0,0.1063813]
[1745538451814,0.29,93963.0,93962.0,0.2128053]
[1745538452011,0.29,93963.0,93962.0,0.2148053]
[1745538452211,0.21601079,93963.0,93962.0,0.4648053]
[1745538452410,0.3608,93992.0,93962.0,0.559324]
[1745538452611,0.29,93982.0,93981.0,0.3608]
[1745538452812,0.29,93982.0,93981.0,0.520339]
[1745538455117,0.291,93982.0,93981.0,0.626743]
[1745538458923,0.291,93982.0,93981.0,0.520339]
[1745538459522,0.3973586,93982.0,93981.0,0.520339]
[1745538459724,0.291,93982.0,93981.0,0.520339]
[1745538460424,0.291,93982.0,93981.0,0.720339]
[1745538465129,0.3973586,93982.0,93981.0,0.6139793]
[1745538465833,0.291,93982.0,93981.0,0.6139793]
[1745538466322,0.291,93982.0,93981.0,0.6809393]
[1745538470033,0.291,93982.0,93981.0,0.7873433]
[1745538475035,0.291,93982.0,93981.0,0.6809393]
[1745538479234,0.291,93982.0,93981.0,0.5834393]
[1745538479235,0.3973586,93982.0,93981.0,0.5834393]
[1745538479430,0.291,93982.0,93981.0,0.5164793]
[1745538480135,0.5997586,93982.0,93981.0,0.5696597]
[1745538480632,0.4934,93982.0,93981.0,0.5696597]
[1745538481039,0.5997586,93982.0,93981.0,0.3608]
[1745538481436,0.5997586,93982.0,93981.0,0.4671597]
[1745538482740,0.4934,93982.0,93981.0,0.4671597]
[1745538487338,0.6334,93982.0,93981.0,0.4671597]
[1745538487538,0.4934,93982.0,93981.0,0.4671597]
[1745538487932,0.3886,93982.0,93981.0,0.4671597]
[1745538488136,0.291,93982.0,93981.0,0.4671597]
[1745538490142,0.3924,93982.0,93981.0,0.4671597]
[1745538490747,0.4936,93982.0,93981.0,0.4671597]
[1745538492146,0.4936,93982.0,93981.0,0.5659597]
[1745538493948,0.4936,93982.0,93981.0,0.6683597]
[1745538498941,0.4936,93982.0,93981.0,0.5659597]
[1745538501952,0.4936,93982.0,93981.0,0.2051597]
[1745538502251,0.4936,93982.0,93981.0,0.3058597]
[1745538504657,0.1063609,93980.0,93979.0,0.3608]
[1745538504850,0.2036,93982.0,93981.0,0.1063597]
[1745538505052,0.4636,93982.0,93981.0,0.1063597]
[1745538505848,0.4626,93982.0,93981.0,0.1063597]
[1745538506047,0.4626,93982.0,93981.0,0.2033597]
[1745538506654,0.4636,93982.0,93981.0,0.2033597]
[1745538515457,0.4636,93982.0,93981.0,0.1063597]
[1745538517560,0.4636,93982.0,93981.0,0.4671597]
[1745538521566,0.4636,93982.0,93981.0,0.3608]
[1745538521957,0.4636,93982.0,93981.0,0.4671597]
[1745538524263,0.5699586,93982.0,93981.0,0.3608]
[1745538526765,0.5699586,93982.0,93981.0,0.4671597]
[1745538528369,0.5699586,93982.0,93981.0,0.1063597]
[1745538531068,0.1063609,93980.0,93979.0,0.2085618]
[1745538531371,0.3863609,93980.0,93979.0,0.2085618]
[1745538535071,0.3863609,93980.0,93979.0,0.1022]
[1745538535772,0.3863609,93980.0,93979.0,0.208562]
[1745538536072,0.3883609,93980.0,93979.0,0.208562]
[1745538536571,0.282,93980.0,93979.0,0.208562]
[1745538536764,0.28,93980.0,93979.0,0.208562]
[1745538537573,0.28,93980.0,93979.0,0.569362]
[1745538537775,0.0531665,94005.0,93995.0,0.1063439]
[1745538538069,0.04,93996.0,93995.0,0.4671439]
[1745538538866,0.044,93996.0,93995.0,0.4671439]
[1745538539172,0.044,93996.0,93995.0,0.5655439]
[1745538539373,0.06798,94017.0,93996.0,0.0531713]
[1745538539574,0.16895744,94017.0,94016.0,0.1063201]
[1745538539967,0.16895744,94017.0,94016.0,0.1023201]
[1745538540667,0.1701,94017.0,94016.0,0.1023201]
[1745538541071,0.1701,94017.0,94016.0,0.3040201]
[1745538541268,0.1611,94017.0,94016.0,0.3040201]
[1745538541474,0.1671,94017.0,94016.0,0.3050201]
[1745538541872,0.1751,94017.0,94016.0,0.3050201]
[1745538542975,0.1711,94017.0,94016.0,0.31644877]
[1745538561682,0.1711,94017.0,94016.0,0.38324877]
[1745538564779,0.1711,94017.0,94016.0,0.10882867]
[1745538564981,0.277419,94017.0,94016.0,0.01242867]
[1745538565482,0.277419,94017.0,94016.0,0.11874877]
[1745538565671,0.474819,94017.0,94016.0,0.11874877]
[1745538573887,0.474819,94017.0,94016.0,0.01242867]
[1745538574886,0.474819,94017.0,94016.0,0.11874877]
[1745538576688,0.474819,94017.0,94016.0,0.22514877]
[1745538580796,0.3685,94017.0,94016.0,0.22514877]
[1745538581793,0.474819,94017.0,94016.0,0.22514877]
[1745538585593,0.3685,94017.0,94016.0,0.22514877]
[1745538586391,0.474819,94017.0,94016.0,0.22514877]
[1745538587698,0.3685,94017.0,94016.0,0.22514877]
[1745538588198,0.474819,94017.0,94016.0,0.22514877]
[1745538589997,0.3685,94017.0,94016.0,0.22514877]
[1745538591799,0.474819,94017.0,94016.0,0.22514877]
[1745538592299,0.3685,94017.0,94016.0,0.22514877]
[1745538592489,0.474819,94017.0,94016.0,0.22514877]
[1745538593997,0.3685,94017.0,94016.0,0.22514877]
[1745538594798,0.474819,94017.0,94016.0,0.22514877]
[1745538595201,0.3685,94017.0,94016.0,0.22514877]
[1745538595501,0.474819,94017.0,94016.0,0.11882867]
[1745538595889,0.474819,94017.0,94016.0,0.22514877]
[1745538598295,0.3685,94017.0,94016.0,0.22514877]
[1745538599404,0.474819,94017.0,94016.0,0.22514877]
[1745538600398,0.474819,94017.0,94016.0,0.11882867]
[1745538600608,0.474819,94017.0,94013.0,0.1066034]
[1745538600609,0.3685,94017.0,94013.0,0.00028]
[1745538600903,0.1063371,94001.0,94000.0,0.4671379]
[1745538601205,0.6271371,94001.0,94000.0,0.1063382]
[1745538601701,0.8313371,94001.0,94000.0,0.1063382]
[1745538602000,0.725,94001.0,93982.0,0.0972]
[1745538602192,0.1063479,93994.0,93993.0,0.1595154]
[1745538602398,0.2663479,93994.0,93993.0,0.1595154]
[1745538603297,0.4709479,93994.0,93993.0,0.1595154]
[1745538604898,0.3646,93994.0,93993.0,0.1595154]
[1745538605498,0.470945,93994.0,93993.0,0.1595154]
[1745538605797,0.2594,93994.0,93993.0,0.1595154]
[1745538606502,0.365745,93994.0,93993.0,0.1595154]
[1745538607310,0.495745,93994.0,93993.0,0.1595154]
[1745538607511,0.365745,93994.0,93993.0,0.0531729]
[1745538607806,0.1063484,93992.0,93991.0,0.106348]
[1745538608012,0.2663484,93992.0,93991.0,0.106348]
[1745538608308,0.3713484,93992.0,93991.0,0.106348]
[1745538608606,0.4748484,93992.0,93991.0,0.106348]
[1745538608800,0.4748484,93992.0,93991.0,0.204948]
[1745538610911,0.3685,93992.0,93991.0,0.204948]
[1745538612008,0.4748473,93992.0,93991.0,0.204948]
[1745538614206,0.3685,93992.0,93991.0,0.204948]
[1745538614407,0.08593797,93992.0,93991.0,0.204948]
[1745538614611,0.2121,94009.0,94008.0,0.1063292]
[1745538614809,0.1063352,94004.0,93999.0,0.06655582]
[1745538615116,0.1058,94003.0,94002.0,0.106336]
[1745538615311,0.1058,94003.0,94002.0,0.210736]
[1745538615513,0.3608,94005.0,94004.0,0.1063337]
[1745538615904,0.1063349,94003.0,94002.0,0.2639028]
[1745538616211,0.1078,94004.0,94003.0,0.1063349]
[1745538616412,0.2161337,94004.0,94003.0,0.1063349]
[1745538616913,0.2141337,94004.0,94003.0,0.1063349]
[1745538617105,0.2141337,94004.0,94003.0,0.1043349]
[1745538617715,0.2121337,94004.0,94003.0,0.1043349]
[1745538617916,0.1063349,94003.0,94002.0,0.1044]
[1745538618211,0.1063412,93999.0,93998.0,0.10634]
[1745538618806,0.0531685,94001.0,93994.0,0.1731436]
[1745538618807,0.1063439,93995.0,93994.0,0.1731436]
[1745538619606,0.1016,93995.0,93994.0,0.2715436]
[1745538620211,0.3060439,93995.0,93994.0,0.2715436]
[1745538620508,0.1997,93995.0,93994.0,0.2715436]
[1745538621210,0.1997,93995.0,93986.0,0.0531765]
[1745538621211,0.1063507,93989.0,93971.0,0.7757]
[1745538621409,0.1063507,93989.0,93985.0,0.0531775]
[1745538621613,0.1063507,93989.0,93986.0,0.0984]
[1745538621805,0.1063507,93989.0,93988.0,0.11941487]
[1745538622007,0.3103507,93989.0,93988.0,0.11941487]
[1745538622413,0.204,93989.0,93988.0,0.12241487]
[1745538622711,0.3103507,93989.0,93988.0,0.12241487]
[1745538622918,0.3103507,93989.0,93988.0,0.22751487]
[1745538623118,0.3103507,93989.0,93988.0,0.22651487]
[1745538623418,0.3103507,93989.0,93988.0,0.22751487]
[1745538623419,0.204,93989.0,93988.0,0.22751487]
[1745538623617,0.1016,93989.0,93988.0,0.22751487]
[1745538624204,0.1016,93989.0,93988.0,0.22551487]
[1745538624516,0.1016,93989.0,93988.0,0.22651487]
[1745538625916,0.1006,93990.0,93989.0,0.1063507]
[1745538626211,0.1006,93990.0,93989.0,0.3118507]
[1745538627521,0.202,93990.0,93989.0,0.3118507]
[1745538628122,0.202,93990.0,93989.0,0.3128507]
[1745538629422,0.1006,93990.0,93989.0,0.3128507]
[1745538629621,0.4671462,93993.0,93992.0,0.1063473]
[1745538632824,0.3608,93993.0,93992.0,0.1063473]
[1745538633526,0.4671462,93993.0,93992.0,0.1063473]
[1745538634127,0.3608,93993.0,93992.0,0.1063473]
[1745538637424,0.4671462,93993.0,93992.0,0.1063473]
[1745538642629,0.1063496,93991.0,93990.0,0.1063489]
[1745538642830,0.1063496,93991.0,93990.0,0.2139489]
[1745538643025,0.1007,93991.0,93990.0,0.2139489]
[1745538643623,0.1007,93991.0,93990.0,0.3145489]
[1745538643826,0.1007,93991.0,93990.0,0.3155489]
[1745538646037,0.1007,93991.0,93990.0,0.3155496]
[1745538648436,0.3608,93993.0,93992.0,0.1063473]
[1745538649835,0.468,93993.0,93992.0,0.1063473]
[1745538650039,0.5743462,93993.0,93992.0,0.1063473]
[1745538651926,0.1063484,93991.0,93990.0,0.2082]
[1745538652539,0.2135484,93991.0,93990.0,0.3145496]
[1745538653839,0.1063507,93989.0,93988.0,0.01306307]
[1745538654337,0.1063507,93989.0,93988.0,0.11941487]
[1745538654533,0.2076507,93989.0,93988.0,0.11941487]
[1745538655039,0.2076507,93989.0,93988.0,0.12041487]
[1745538655241,0.2076507,93989.0,93988.0,0.12141487]
[1745538657233,0.2076507,93989.0,93988.0,0.22081487]
[1745538666648,0.1013,93989.0,93988.0,0.22081487]
[1745538667246,0.3551,93989.0,93988.0,0.22081487]
[1745538667443,0.2051,93989.0,93988.0,0.22081487]
[1745538667945,0.3114507,93989.0,93988.0,0.22081487]
[1745538668548,0.2051,93989.0,93988.0,0.22081487]
[1745538669849,0.3114507,93989.0,93988.0,0.22081487]
[1745538673149,0.3114507,93989.0,93988.0,0.01506307]
[1745538673349,0.3114507,93989.0,93988.0,0.01346723]
[1745538674552,0.3114507,93989.0,93988.0,0.01246723]
[1745538675052,0.3114507,93989.0,93988.0,0.11881903]
[1745538676856,0.3114507,93989.0,93988.0,0.11781903]